bitfinex-derivatives/quotes_SOLF0:USTF0_20250320
["timestamp","ask_amount","ask_price","bid_price","bid_amount"]
[1742451378881,245.9,134.3,134.28,7.4467]
[1742451379076,245.9,134.3,134.27,44.48241365]
[1742451379282,253.346,134.3,134.27,37.03511365]
[1742451379585,253.39538516,134.3,134.27,37.03511365]
[1742451380281,245.94938516,134.3,134.28,7.4468]
[1742451380479,0.04938516,134.3,134.27,37.03511365]
[1742451380680,0.04938516,134.3,134.28,10.89511365]
[1742451380879,0.04938516,134.3,134.29,7.4464]
[1742451381485,0.04938516,134.3,134.29,18.34151365]
[1742451381685,245.82,134.35,134.32,7.4447]
[1742451381874,245.82,134.35,134.32,18.33981365]
[1742451382384,245.82,134.35,134.32,10.89511365]
[1742451382785,245.82,134.35,134.32,10.95104685]
[1742451383385,253.2634,134.35,134.32,10.95104685]
[1742451383585,245.82,134.35,134.32,10.95104685]
[1742451383979,253.2634,134.35,134.32,10.95104685]
[1742451384680,7.4438,134.34,134.32,10.95104685]
[1742451385086,7.4442,134.33,134.32,10.95104685]
[1742451386881,7.4442,134.33,134.32,0.0559332]
[1742451387591,18.33931365,134.33,134.32,0.0559332]
[1742451389387,7.4447,134.32,134.31,31.96]
[1742451389588,37.01511365,134.32,134.26,67.15]
[1742451389788,10.89511365,134.29,134.26,67.15]
[1742451389988,18.34251365,134.28,134.26,67.15]
[1742451390691,18.39442547,134.28,134.26,41.08566442]
[1742451391192,10.94702547,134.28,134.26,41.08566442]
[1742451391486,10.94702547,134.28,134.26,51.98077807]
[1742451391487,0.05191182,134.28,134.26,51.98077807]
[1742451392188,26.12,134.32,134.27,10.89511365]
[1742451392391,10.89511365,134.33,134.28,37.01511365]
[1742451392591,10.89511365,134.33,134.28,50.14511365]
[1742451393493,0.02375599,134.32,134.29,0.05077704]
[1742451393989,7.46845599,134.32,134.29,0.05077704]
[1742451394495,7.46845599,134.32,134.29,7.49697704]
[1742451394791,0.02375599,134.32,134.29,7.49697704]
[1742451394999,0.02375599,134.32,134.29,7.49687704]
[1742451395186,0.02375599,134.32,134.29,18.39199069]
[1742451395391,0.02375599,134.32,134.29,10.94589069]
[1742451395693,0.02375599,134.32,134.29,24.51589069]
[1742451395897,0.02375599,134.32,134.3,7.4458]
[1742451396193,0.02375599,134.32,134.29,24.51589069]
[1742451396394,0.02375599,134.32,134.29,31.96209069]
[1742451396895,0.02375599,134.32,134.29,24.51589069]
[1742451397095,0.02375599,134.32,134.3,7.4458]
[1742451397294,0.02375599,134.32,134.29,24.51589069]
[1742451397497,7.46845599,134.32,134.29,24.51589069]
[1742451397890,7.46845599,134.32,134.29,31.96189069]
[1742451398097,0.02375599,134.32,134.29,24.51589069]
[1742451398286,0.02375599,134.32,134.29,54.29589069]
[1742451399499,0.02375599,134.32,134.29,61.74199069]
[1742451399697,0.02375599,134.32,134.29,50.84687704]
[1742451399998,0.02375599,134.32,134.3,7.4454]
[1742451400392,245.7,134.4,134.3,18.34051365]
[1742451400692,245.7,134.4,134.34,10.89511365]
[1742451400693,10.89511365,134.38,134.34,10.89511365]
[1742451401000,10.89511365,134.38,134.34,37.01511365]
[1742451401498,7.4424,134.37,134.34,37.01511365]
[1742451401698,7.4424,134.37,134.35,0.0500913]
[1742451402397,10.89511365,134.38,134.35,0.0500913]
[1742451403505,18.33661365,134.38,134.35,0.0500913]
[1742451404097,7.442,134.37,134.35,0.0500913]
[1742451406402,7.4425,134.36,134.35,0.0500913]
[1742451406803,18.33761365,134.36,134.35,0.0500913]
[1742451407799,7.4446,134.33,134.3,10.89511365]
[1742451408004,10.89511365,134.34,134.3,37.01511365]
[1742451408205,10.89511365,134.34,134.3,26.12]
[1742451408506,7.4445,134.33,134.29,102.39055387]
[1742451408801,18.33961365,134.33,134.3,26.12]
[1742451408995,7.49299501,134.32,134.3,26.17048089]
[1742451410909,7.4453,134.31,134.3,26.17048089]
[1742451411303,18.34041365,134.31,134.3,0.05048089]
[1742451411708,44.46041365,134.31,134.3,0.05048089]
[1742451415610,18.34041365,134.31,134.3,0.05048089]
[1742451415812,7.4453,134.31,134.3,0.05048089]
[1742451418209,18.38810866,134.32,134.3,0.05048089]
[1742451419312,7.4453,134.31,134.3,0.05048089]
[1742451420812,0.04809501,134.32,134.3,0.05048089]
[1742451421217,10.94320866,134.32,134.3,0.05048089]
[1742451421716,7.4453,134.31,134.3,0.05048089]
[1742451422919,18.34041365,134.31,134.3,0.05048089]
[1742451423619,0.04809501,134.32,134.3,0.05048089]
[1742451424917,7.49319501,134.32,134.3,0.05048089]
[1742451426021,18.34041365,134.31,134.3,0.05048089]
[1742451429916,20.38691365,134.31,134.3,0.05048089]
[1742451430116,18.34091365,134.3,134.29,13.13]
[1742451430317,44.46091365,134.3,134.29,13.13]
[1742451431016,7.4464,134.29,134.28,43.36]
[1742451431221,10.89511365,134.29,134.26,47.5]
[1742451431422,10.89511365,134.27,134.26,47.5]
[1742451431825,10.89511365,134.27,134.26,41.03]
[1742451432132,44.46261365,134.27,134.26,41.03]
[1742451433426,245.74862072,134.28,134.26,41.03]
[1742451435326,0.04862072,134.28,134.26,41.03]
[1742451435825,0.04862072,134.28,134.25,64.13919131]
[1742451436826,0.04862072,134.28,134.26,7.448]
[1742451438216,0.04862072,134.28,134.25,64.13899131]
[1742451438736,0.04862072,134.28,134.26,7.4479]
[1742451440030,0.04862072,134.28,134.27,44.46261365]
[1742451441726,253.1851,134.32,134.28,7.4469]
[1742451442027,264.08021365,134.32,134.28,7.4469]
[1742451442220,256.63511365,134.32,134.28,7.4469]
[1742451442930,0.05498273,134.31,134.29,0.05627485]
[1742451444831,7.50028273,134.31,134.29,0.05627485]
[1742451445224,0.05498273,134.31,134.29,7.50247485]
[1742451446133,0.05498273,134.31,134.3,7.4458]
[1742451447027,0.05498273,134.31,134.29,0.05627485]
[1742451447833,7.50058273,134.31,134.29,0.05627485]
[1742451448429,0.05498273,134.31,134.29,0.05627485]
[1742451449128,7.50028273,134.31,134.29,0.05627485]
[1742451450635,0.05498273,134.31,134.29,0.05627485]
[1742451450829,0.05498273,134.31,134.29,7.50247485]
[1742451451337,0.05498273,134.31,134.3,18.34091365]
[1742451451939,0.05498273,134.31,134.3,7.4458]
[1742451453431,0.05498273,134.31,134.29,210.9513885]
[1742451453639,0.05498273,134.31,134.29,218.3976885]
[1742451454434,0.05498273,134.31,134.3,7.4458]
[1742451454738,282.75511365,134.35,134.3,10.89511365]
[1742451455339,282.75511365,134.35,134.3,37.01511365]
[1742451455636,290.19831365,134.35,134.31,7.4449]
[1742451455828,10.89511365,134.34,134.31,7.4449]
[1742451456033,10.93984207,134.34,134.31,7.4449]
[1742451456339,18.38344207,134.34,134.31,7.4449]
[1742451456539,10.93984207,134.34,134.3,44.46071365]
[1742451456739,10.93984207,134.34,134.3,37.01511365]
[1742451456941,18.38374207,134.34,134.31,7.445]
[1742451462249,10.93984207,134.34,134.3,43.48511365]
[1742451462451,10.89511365,134.33,134.3,32.59]
[1742451462749,7.4453,134.31,134.3,32.59]
[1742451463153,7.4453,134.31,134.3,26.12]
[1742451463339,7.4458,134.3,134.29,200.05627485]
[1742451464446,18.38524207,134.31,134.29,200.05627485]
[1742451464651,0.04472842,134.31,134.29,200.05627485]
[1742451467452,0.04472842,134.31,134.3,7.4458]
[1742451468051,0.04472842,134.31,134.3,18.34091365]
[1742451468347,264.07841365,134.35,134.31,7.4449]
[1742451469246,245.74,134.35,134.32,7.4445]
[1742451469651,245.74,134.35,134.32,7.49773414]
[1742451469850,253.1836,134.35,134.32,7.49773414]
[1742451470151,245.74,134.35,134.32,0.05323414]
[1742451470351,256.63511365,134.35,134.32,0.05323414]
[1742451470550,7.4436,134.34,134.32,0.05323414]
[1742451475462,7.4442,134.33,134.32,0.05323414]
[1742451475662,18.33931365,134.33,134.32,0.05323414]
[1742451475961,44.45931365,134.33,134.32,0.05323414]
[1742451476160,7.4447,134.32,134.31,44.0]
[1742451476356,18.33981365,134.32,134.31,44.0]
[1742451477155,10.89511365,134.32,134.31,44.0]
[1742451477661,18.33981365,134.32,134.31,44.0]
[1742451478956,10.89511365,134.32,134.31,44.0]
[1742451480961,10.89511365,134.32,134.31,244.0]
[1742451482058,18.33981365,134.32,134.31,244.0]
[1742451482259,0.04980627,134.33,134.31,244.0]
[1742451482962,0.04980627,134.33,134.31,251.4451]
[1742451483358,0.04980627,134.33,134.32,7.4447]
[1742451483955,0.04980627,134.33,134.31,262.34011365]
[1742451484456,0.04980627,134.33,134.31,254.89511365]
[1742451485765,0.04980627,134.33,134.31,244.0]
[1742451486966,0.04980627,134.33,134.31,251.4453]
[1742451487366,0.04980627,134.33,134.31,244.0]
[1742451487567,0.04980627,134.33,134.31,251.4452]
[1742451495173,0.04980627,134.33,134.32,7.4447]
[1742451495372,0.04980627,134.33,134.31,244.0]
[1742451496573,0.04980627,134.33,134.32,7.4447]
[1742451496769,0.04980627,134.33,134.31,244.0]
[1742451497171,0.04980627,134.33,134.31,251.4449]
[1742451498062,0.04980627,134.33,134.31,262.34001365]
[1742451498766,0.04980627,134.33,134.32,7.4447]
[1742451499871,10.89511365,134.37,134.32,37.01511365]
[1742451500071,10.89511365,134.37,134.33,10.89511365]
[1742451500472,18.33731365,134.37,134.34,7.4436]
[1742451501074,18.33731365,134.37,134.34,7.49957585]
[1742451502775,7.4425,134.36,134.34,0.05597585]
[1742451502976,10.89511365,134.36,134.34,0.05597585]
[1742451503969,7.443,134.35,134.34,0.05597585]
[1742451504175,18.33811365,134.35,134.34,0.05597585]
[1742451505874,10.89511365,134.35,134.34,0.05597585]
[1742451506278,18.33781365,134.36,134.34,0.05597585]
[1742451507677,7.443,134.35,134.34,0.05597585]
[1742451508080,18.33811365,134.35,134.34,0.05597585]
[1742451509482,18.33811365,134.35,134.34,200.05597585]
[1742451511085,7.4442,134.33,134.32,29.77]
[1742451511282,44.45931365,134.33,134.32,29.77]
[1742451511483,44.45931365,134.33,134.32,12.58308988]
[1742451511684,44.45931365,134.33,134.31,44.0]
[1742451511685,7.4447,134.32,134.31,44.0]
[1742451511877,18.33981365,134.32,134.31,44.0]
[1742451520588,256.61511365,134.32,134.29,41.87]
[1742451520793,10.89511365,134.3,134.29,41.87]
[1742451520994,37.01511365,134.3,134.29,41.87]
[1742451521388,44.46091365,134.3,134.29,41.87]
[1742451526400,7.4464,134.29,134.28,0.05291668]
[1742451526698,10.89511365,134.29,134.24,10.89511365]
[1742451526898,37.01511365,134.3,134.25,10.89511365]
[1742451527101,44.46131365,134.3,134.25,18.34351365]
[1742451527901,7.50117014,134.29,134.26,0.04809894]
[1742451528299,0.05477014,134.29,134.26,0.04809894]
[1742451529594,7.50127014,134.29,134.26,0.04809894]
[1742451529794,0.05477014,134.29,134.26,7.49609894]
[1742451530089,7.50127014,134.29,134.26,10.94321259]
[1742451530289,7.50127014,134.29,134.26,0.04809894]
[1742451531602,7.447,134.28,134.26,0.04809894]
[1742451533101,7.50137014,134.29,134.26,0.04809894]
[1742451533897,0.05477014,134.29,134.26,7.49589894]
[1742451534399,0.05477014,134.29,134.26,0.04809894]
[1742451534800,7.50147014,134.29,134.26,0.04809894]
[1742451536601,7.4469,134.28,134.26,0.04809894]
[1742451536803,0.05477014,134.29,134.26,0.04809894]
[1742451537203,7.50137014,134.29,134.26,0.04809894]
[1742451537703,7.50137014,134.29,134.26,7.49589894]
[1742451538004,0.05477014,134.29,134.27,10.89511365]
[1742451539205,0.05477014,134.29,134.28,7.4469]
[1742451540304,0.05477014,134.29,134.27,18.34241365]
[1742451541309,7.50127014,134.29,134.27,10.89511365]
[1742451541510,7.50127014,134.29,134.26,37.06321259]
[1742451541715,0.05477014,134.29,134.26,37.06321259]
[1742451542312,7.50127014,134.29,134.26,44.51091259]
[1742451542705,0.05477014,134.29,134.26,44.51091259]
[1742451543610,0.05477014,134.29,134.27,7.4475]
[1742451544111,0.05477014,134.29,134.26,37.06321259]
[1742451544318,0.05477014,134.29,134.26,44.51101259]
[1742451544818,0.05477014,134.29,134.27,7.4472]
[1742451545217,0.05477014,134.29,134.26,37.06321259]
[1742451545418,0.05477014,134.29,134.28,7.4469]
[1742451550725,0.05477014,134.29,134.27,7.4473]
[1742451551029,0.05477014,134.29,134.26,37.06321259]
[1742451551625,0.05477014,134.29,134.28,7.4469]
[1742451555324,0.05477014,134.29,134.26,26.16809894]
[1742451555521,10.94988379,134.29,134.26,26.16809894]
[1742451556022,18.34241365,134.28,134.26,0.04809894]
[1742451556422,10.89511365,134.28,134.26,0.04809894]
[1742451556822,10.89511365,134.27,134.26,0.04809894]
[1742451562730,18.34261365,134.27,134.26,0.04809894]
[1742451567128,7.4491,134.24,134.23,48.7]
[1742451567328,18.34421365,134.24,134.23,48.7]
[1742451567528,10.89511365,134.24,134.22,19.0]
[1742451567729,10.89511365,134.23,134.22,19.0]
[1742451568030,18.34481365,134.23,134.21,67.71568947]
[1742451568225,18.34481365,134.23,134.21,67.76598584]
[1742451568828,18.34541365,134.22,134.21,67.76598584]
[1742451569029,44.46541365,134.22,134.21,67.76598584]
[1742451569223,37.01511365,134.22,134.21,67.76598584]
[1742451569429,26.17027603,134.24,134.21,67.76598584]
[1742451569930,44.51478968,134.24,134.21,67.76598584]
[1742451570732,37.06538968,134.24,134.21,67.76598584]
[1742451572127,37.06538968,134.24,134.21,75.21668584]
[1742451572430,26.17027603,134.24,134.21,67.76598584]
[1742451572629,26.17027603,134.24,134.21,78.66109949]
[1742451572831,0.05027603,134.24,134.21,90.19509949]
[1742451573329,0.05027603,134.24,134.22,7.4502]
[1742451573829,0.05027603,134.24,134.21,82.74469949]
[1742451574031,0.05027603,134.24,134.21,90.19529949]
[1742451574535,7.49957603,134.24,134.21,71.84958584]
[1742451574732,10.94538968,134.24,134.21,71.84958584]
[1742451575229,7.45,134.23,134.21,71.84958584]
[1742451575536,10.94538968,134.24,134.21,67.76598584]
[1742451576236,7.4502,134.23,134.21,67.76598584]
[1742451576432,10.89511365,134.22,134.21,67.76598584]
[1742451577237,18.34541365,134.22,134.21,67.76598584]
[1742451577828,18.34541365,134.22,134.21,0.05029637]
[1742451578536,7.4508,134.21,134.2,19.0]
[1742451578736,18.34591365,134.21,134.2,19.0]
[1742451578934,10.89511365,134.21,134.19,19.19]
[1742451579134,37.01511365,134.2,134.19,19.19]
[1742451579334,10.89511365,134.2,134.19,19.19]
[1742451579542,10.89511365,134.2,134.18,40.69914022]
[1742451579741,10.89511365,134.19,134.18,40.74858757]
[1742451580540,10.89511365,134.19,134.18,0.04944735]
[1742451580838,10.89511365,134.2,134.18,0.04944735]
[1742451583137,10.89511365,134.2,134.18,7.50184735]
[1742451584439,10.89511365,134.2,134.18,0.04944735]
[1742451585740,37.06249631,134.21,134.18,0.04944735]
[1742451586242,0.04738266,134.21,134.19,10.89511365]
[1742451587832,0.04738266,134.21,134.18,10.944561]
[1742451588037,0.04738266,134.21,134.18,0.04944735]
[1742451588336,7.49848266,134.21,134.18,0.04944735]
[1742451589648,7.49848266,134.21,134.18,7.50184735]
[1742451590141,7.4514,134.2,134.18,0.04944735]
[1742451590543,0.04738266,134.21,134.18,0.04944735]
[1742451591044,7.49838266,134.21,134.18,7.50164735]
[1742451591245,0.04738266,134.21,134.18,0.04944735]
[1742451591734,7.49818266,134.21,134.18,7.50174735]
[1742451592444,7.4514,134.2,134.18,0.04944735]
[1742451592645,0.04738266,134.21,134.18,0.04944735]
[1742451593043,10.94249631,134.21,134.18,0.04944735]
[1742451593244,18.39379631,134.21,134.18,0.04944735]
[1742451594447,18.39379631,134.21,134.18,7.50184735]
[1742451594846,10.94249631,134.21,134.18,7.50184735]
[1742451595546,18.39339631,134.21,134.18,7.50184735]
[1742451596235,10.94249631,134.21,134.18,7.50184735]
[1742451596737,10.94249631,134.21,134.18,0.04944735]
[1742451596738,18.39339631,134.21,134.18,0.04944735]
[1742451598634,10.89511365,134.2,134.18,0.04944735]
[1742451598835,10.89511365,134.19,134.18,0.04944735]
[1742451606546,44.48701365,134.19,134.18,0.04944735]
[1742451608044,37.03511365,134.19,134.18,0.04944735]
[1742451608248,37.03511365,134.2,134.18,0.04944735]
[1742451610353,10.89511365,134.19,134.18,0.04944735]
[1742451611551,18.34701365,134.19,134.18,0.04944735]
[1742451612549,7.4525,134.18,134.17,29.53]
[1742451612852,18.34761365,134.18,134.17,29.53]
[1742451613348,264.31511365,134.18,134.14,121.36756769]
[1742451613555,10.89511365,134.15,134.13,66.47094191]
[1742451613752,37.03511365,134.14,134.13,66.47094191]
[1742451614052,44.48981365,134.14,134.13,66.52538672]
[1742451615156,44.48981365,134.14,134.13,66.47593937]
[1742451616050,44.48981365,134.14,134.13,0.05444481]
[1742451616557,7.4555,134.13,134.11,19.03]
[1742451616755,10.89511365,134.12,134.11,19.03]
[1742451618158,18.35091365,134.12,134.11,19.03]
[1742451620548,10.89511365,134.12,134.11,19.03]
[1742451621254,10.94718547,134.13,134.11,19.03]
[1742451622462,18.40278547,134.13,134.11,19.03]
[1742451623363,18.35091365,134.12,134.11,19.03]
[1742451626965,10.89511365,134.12,134.11,19.03]
[1742451628073,10.94718547,134.13,134.11,19.03]
[1742451628266,18.40278547,134.13,134.11,19.03]
[1742451628968,10.89511365,134.12,134.11,19.03]
[1742451629369,10.94718547,134.13,134.11,19.03]
[1742451630165,245.96,134.18,134.11,19.03]
[1742451630166,10.89511365,134.17,134.12,10.89511365]
[1742451630362,37.05511365,134.17,134.15,7.4536]
[1742451630562,256.85511365,134.18,134.15,7.4536]
[1742451630966,256.85511365,134.18,134.13,10.89511365]
[1742451631167,10.89511365,134.17,134.13,10.89511365]
[1742451631368,10.9427683,134.17,134.14,0.04963418]
[1742451631574,18.3960683,134.17,134.14,0.04963418]
[1742451632973,18.3960683,134.17,134.14,7.50423418]
[1742451633873,7.50095465,134.17,134.14,0.04963418]
[1742451634572,7.50095465,134.17,134.14,7.50403418]
[1742451635774,10.89511365,134.16,134.14,7.50403418]
[1742451636078,10.89511365,134.15,134.14,0.04963418]
[1742451636376,10.89511365,134.16,134.14,0.04963418]
[1742451636577,18.34921365,134.16,134.14,0.04963418]
[1742451637279,7.4541,134.15,134.14,0.04963418]
[1742451638278,18.34901365,134.16,134.14,0.04963418]
[1742451638473,44.58901365,134.16,134.14,0.04963418]
[1742451643379,26.24,134.16,134.14,0.04963418]
[1742451644182,26.24,134.16,134.14,7.50403418]
[1742451644791,26.24,134.16,134.15,7.4541]
[1742451645282,10.9427683,134.17,134.15,7.4541]
[1742451646082,0.04765465,134.17,134.15,7.4541]
[1742451646978,0.04765465,134.17,134.16,7.4536]
[1742451647183,37.09511365,134.21,134.16,10.89511365]
[1742451647585,18.34611365,134.21,134.18,7.4522]
[1742451647781,44.54611365,134.21,134.18,7.4522]
[1742451648287,44.60237353,134.21,134.18,7.50539177]
[1742451648983,18.40237353,134.21,134.18,7.50539177]
[1742451649178,44.60237353,134.21,134.18,7.50539177]
[1742451650588,7.4514,134.2,134.18,0.05319177]
[1742451650983,18.34651365,134.2,134.18,0.05319177]
[1742451654390,10.95137353,134.21,134.19,7.4519]
[1742451654590,0.05625988,134.21,134.18,10.94830542]
[1742451655091,0.05625988,134.21,134.19,7.4516]
[1742451656290,0.05625988,134.21,134.18,10.94830542]
[1742451656291,7.50735988,134.21,134.18,18.40050542]
[1742451656493,7.50735988,134.21,134.18,7.50539177]
[1742451657488,0.05625988,134.21,134.19,7.4519]
[1742451658290,7.50705988,134.21,134.19,7.4519]
[1742451658495,7.50705988,134.21,134.18,7.50539177]
[1742451659298,18.40217353,134.21,134.18,7.50539177]
[1742451659597,7.4514,134.2,134.18,0.05319177]
[1742451659794,18.34651365,134.2,134.18,0.05319177]
[1742451660689,0.05625988,134.21,134.18,10.94830542]
[1742451661300,0.05625988,134.21,134.2,7.4514]
[1742451661501,37.03511365,134.26,134.2,37.03511365]
[1742451661703,10.89511365,134.26,134.22,10.89511365]
[1742451661903,256.85511365,134.27,134.23,10.89511365]
[1742451662295,264.30311365,134.27,134.23,44.50461365]
[1742451662695,0.0554341,134.26,134.24,0.04789441]
[1742451664299,0.0554341,134.26,134.24,10.94300806]
[1742451664806,10.89511365,134.29,134.25,10.89511365]
[1742451665002,37.05511365,134.3,134.26,10.89511365]
[1742451665201,41.92494657,134.31,134.27,10.89511365]
[1742451665402,10.89511365,134.31,134.27,12.93491365]
[1742451665905,0.05712413,134.3,134.28,0.05316644]
[1742451668900,0.05712413,134.3,134.28,10.94828009]
[1742451671008,0.05712413,134.3,134.29,26.14]
[1742451671702,7.50292413,134.3,134.29,26.14]
[1742451671897,0.05712413,134.3,134.29,26.14]
[1742451672706,18.33961365,134.33,134.29,37.03511365]
[1742451672909,10.89511365,134.33,134.29,37.03511365]
[1742451673605,7.4451,134.32,134.29,37.03511365]
[1742451673808,10.89511365,134.33,134.29,37.03511365]
[1742451674111,0.05231183,134.32,134.29,44.53282761]
[1742451674308,10.89511365,134.35,134.31,10.89511365]
[1742451674612,18.45708162,134.36,134.32,18.33961365]
[1742451674906,11.01428162,134.36,134.32,44.47961365]
[1742451675316,11.01428162,134.36,134.32,37.03511365]
[1742451675612,0.04074967,134.35,134.33,0.05195766]
[1742451676110,7.48384967,134.35,134.33,0.05195766]
[1742451677415,7.4436,134.34,134.33,0.05195766]
[1742451677614,0.04074967,134.35,134.33,0.05195766]
[1742451678715,0.12697881,134.34,134.33,0.01075695]
[1742451680612,7.57057881,134.34,134.33,0.01075695]
[1742451680812,0.12697881,134.34,134.33,0.01075695]
[1742451682219,0.12697881,134.34,134.33,7.45495695]
[1742451682518,0.12697881,134.34,134.33,0.01075695]
[1742451683309,7.57057881,134.34,134.33,0.01075695]
[1742451684126,0.12697881,134.34,134.33,0.01075695]
[1742451685027,0.12697881,134.34,134.33,7.45495695]
[1742451686530,0.12697881,134.34,134.33,0.01075695]
[1742451687229,0.12697881,134.34,134.33,7.45495695]
[1742451689425,0.12697881,134.34,134.33,18.3500706]
[1742451689730,0.2576228,134.35,134.34,7.4436]
[1742451689930,0.2576228,134.35,134.34,18.33871365]
[1742451690124,0.2576228,134.35,134.34,10.89511365]
[1742451690320,0.2576228,134.35,134.33,10.9058706]
[1742451690524,0.2576228,134.35,134.33,0.01075695]
[1742451690929,7.7010228,134.35,134.33,0.01075695]
[1742451691129,0.2576228,134.35,134.33,0.01075695]
[1742451691530,7.7007228,134.35,134.33,0.01075695]
[1742451693032,0.2576228,134.35,134.33,7.45475695]
[1742451695832,0.2576228,134.35,134.34,7.4436]
[1742451702037,0.2576228,134.35,134.34,18.33871365]
[1742451702539,0.42847825,134.36,134.35,7.443]
[1742451702739,0.42847825,134.36,134.35,44.43811365]
[1742451703340,0.61423105,134.37,134.36,18.33761365]
[1742451704531,0.61423105,134.37,134.36,10.89511365]
[1742451705936,0.61423105,134.37,134.36,18.33761365]
[1742451707440,0.61423105,134.37,134.36,10.89511365]
[1742451708145,0.61423105,134.37,134.36,18.33761365]
[1742451708538,0.61423105,134.37,134.36,10.89511365]
[1742451708744,0.61423105,134.37,134.35,44.43781365]
[1742451709539,0.61423105,134.37,134.35,26.1]
[1742451709739,8.05623105,134.37,134.35,26.1]
[1742451709937,0.61423105,134.37,134.35,26.1]
[1742451711842,0.61423105,134.37,134.35,33.5427]
[1742451712045,0.61423105,134.37,134.35,26.1]
[1742451712346,0.61423105,134.37,134.35,33.5428]
[1742451712546,0.61423105,134.37,134.35,26.1]
[1742451715848,0.61423105,134.37,134.35,33.543]
[1742451716350,0.61423105,134.37,134.35,26.1]
[1742451718850,0.61423105,134.37,134.35,33.5429]
[1742451719050,0.61423105,134.37,134.35,26.1]
[1742451719250,0.61423105,134.37,134.35,36.99511365]
[1742451719451,0.61423105,134.37,134.36,7.4425]
[1742451720963,0.61423105,134.37,134.35,44.43801365]
[1742451721256,0.61423105,134.37,134.35,26.1]
[1742451722148,0.61423105,134.37,134.36,7.4425]
[1742451724455,0.61423105,134.37,134.36,18.33761365]
[1742451724662,0.86194793,134.38,134.37,7.4419]
[1742451724856,0.86194793,134.38,134.37,18.33701365]
[1742451725153,1.18362232,134.4,134.39,7.4408]
[1742451725359,1.18362232,134.4,134.39,44.43591365]
[1742451726155,1.41479325,134.41,134.4,7.4403]
[1742451726554,1.5727525,134.42,134.4,10.89511365]
[1742451726859,1.5727525,134.42,134.41,7.4397]
[1742451727153,1.5727525,134.42,134.41,18.33481365]
[1742451727357,0.90253131,134.44,134.41,10.89511365]
[1742451727662,0.90253131,134.44,134.42,44.43431365]
[1742451728047,72.89580419,134.5,134.43,10.89511365]
[1742451728357,341.22425356,134.56,134.49,10.89511365]
[1742451728556,14.74357795,134.55,134.51,10.89511365]
[1742451728853,325.4193827,134.54,134.51,26.24]
[1742451729051,332.8520827,134.54,134.51,26.24]
[1742451729248,314.52426905,134.54,134.51,37.13511365]
[1742451729857,325.4193827,134.54,134.51,26.24]
[1742451730151,332.8520827,134.54,134.51,26.24]
[1742451730352,325.4193827,134.54,134.51,26.24]
[1742451730752,273.59579071,134.53,134.51,26.24]
[1742451730947,262.70067706,134.53,134.5,0.05640199]
[1742451731151,262.70067706,134.53,134.5,10.95151564]
[1742451731658,262.70067706,134.53,134.5,0.05640199]
[1742451731956,3.3819639,134.52,134.5,10.95151564]
[1742451732957,3.3819639,134.52,134.51,10.89511365]
[1742451734358,3.3819639,134.52,134.51,37.15511365]
[1742451735661,7.4342,134.51,134.5,10.95151564]
[1742451735860,3.3819639,134.52,134.5,10.95151564]
[1742451737363,3.3819639,134.52,134.51,10.89511365]
[1742451739459,3.3819639,134.52,134.5,10.95151564]
[1742451741764,3.3819639,134.52,134.5,18.38621564]
[1742451742057,3.3819639,134.52,134.51,10.89511365]
[1742451742266,3.3819639,134.52,134.51,18.32931365]
[1742451744770,3.49468366,134.53,134.52,7.4336]
[1742451744969,3.49468366,134.53,134.52,44.54871365]
[1742451746173,3.73043139,134.54,134.53,7.4331]
[1742451746373,3.73043139,134.54,134.53,18.32821365]
[1742451746668,3.8484643,134.55,134.53,10.89511365]
[1742451746973,2.03447769,134.56,134.54,10.89511365]
[1742451747185,2.03447769,134.56,134.55,37.11511365]
[1742451747374,2.18208742,134.58,134.56,18.32651365]
[1742451748572,2.18208742,134.58,134.56,10.89511365]
[1742451748773,2.18208742,134.58,134.55,37.11511365]
[1742451749075,20.50780107,134.58,134.55,26.22]
[1742451749874,9.54759811,134.57,134.55,26.22]
[1742451750168,2.11669811,134.57,134.55,33.652]
[1742451750374,2.11669811,134.57,134.55,37.11511365]
[1742451750574,2.11669811,134.57,134.56,7.4314]
[1742451751070,2.11669811,134.57,134.56,18.32651365]
[1742451755174,2.20984555,134.59,134.56,10.89511365]
[1742451755369,2.20984555,134.59,134.57,10.89511365]
[1742451755873,2.20984555,134.59,134.57,18.32561365]
[1742451756274,2.20984555,134.59,134.57,10.89511365]
[1742451756467,2.20984555,134.59,134.57,18.32571365]
[1742451758774,2.20984555,134.59,134.58,7.4303]
[1742451759373,2.20984555,134.59,134.58,18.32541365]
[1742451759871,2.20984555,134.59,134.58,10.89511365]
[1742451761268,2.20984555,134.59,134.58,18.32541365]
[1742451761473,2.20984555,134.59,134.58,10.89511365]
[1742451762273,2.20984555,134.59,134.58,18.32541365]